bitfinex/quotes_SOLUSD_20250829
["timestamp","ask_amount","ask_price","bid_price","bid_amount"]
[1756426209181,0.69,215.18,215.09,0.46]
[1756426209381,0.06,215.19,215.14,26.0]
[1756426209621,1e-08,215.19,215.18,0.28432314]
[1756426209787,1e-08,215.2,215.19,39.87991715]
[1756426210109,1e-08,215.22,215.19,40.33991715]
[1756426210313,1e-08,215.22,215.2,52.18460116]
[1756426210691,1e-08,215.22,215.21,56.36654137]
[1756426212712,1e-08,215.22,215.21,30.64662422]
[1756426212911,1e-08,215.22,215.21,68.02662422]
[1756426213119,1e-08,215.22,215.21,68.95128664]
[1756426213598,1e-08,215.22,215.21,82.54688065]
[1756426213795,1e-08,215.22,215.21,56.83120379]
[1756426214006,1e-08,215.26,215.25,26.0]
[1756426214305,1e-08,215.29,215.28,26.28432314]
[1756426214499,1e-08,215.29,215.28,26.74883447]
[1756426214808,1e-08,215.29,215.28,45.44954182]
[1756426215315,0.1,215.41,215.3,33.87991715]
[1756426215316,1e-08,215.31,215.3,33.87991715]
[1756426215624,0.1,215.41,215.35,0.28432314]
[1756426215916,0.1,215.41,215.37,13.87991715]
[1756426216614,0.69,215.4,215.34,13.87991715]
[1756426216804,0.69,215.4,215.36,4.64338781]
[1756426217620,0.69,215.4,215.37,26.0]
[1756426217795,0.69,215.4,215.37,63.38]
[1756426217990,0.69,215.4,215.37,63.36]
[1756426218599,0.69,215.4,215.37,37.36]
[1756426218913,0.69,215.39,215.34,26.0]
[1756426219093,0.69,215.38,215.34,26.0]
[1756426219295,0.69,215.38,215.34,30.64376542]
[1756426219595,0.69,215.38,215.34,26.0]
[1756426219812,0.69,215.38,215.34,30.6437724]
[1756426221626,0.69,215.37,215.32,4.64407078]
[1756426222312,0.69,215.37,215.31,4.64446585]
[1756426222513,4.64273184,215.4,215.31,4.64446585]
[1756426222514,0.69,215.36,215.32,37.36]
[1756426222729,0.69,215.35,215.32,37.36]
[1756426222905,0.69,215.35,215.33,4.64403473]
[1756426223316,0.69,215.38,215.32,37.36]
[1756426223709,0.69,215.37,215.29,30.64475752]
[1756426223951,0.69,215.36,215.3,37.34]
[1756426224627,0.69,215.38,215.3,37.34]
[1756426224805,0.69,215.37,215.3,37.34]
[1756426225006,0.69,215.36,215.24,0.46]
[1756426225314,0.69,215.36,215.25,13.59559401]
[1756426225632,0.69,215.35,215.26,37.34]
[1756426226313,0.69,215.35,215.27,4.64532912]
[1756426226726,26.0,215.39,215.28,13.59559401]
[1756426227037,0.1,215.41,215.29,0.46]
[1756426227038,0.69,215.38,215.29,0.46]
[1756426227331,0.69,215.38,215.3,37.34]
[1756426227708,0.69,215.38,215.29,0.46]
[1756426227911,0.69,215.38,215.31,37.34]
[1756426228428,0.69,215.38,215.32,4.64425041]
[1756426229535,0.1,215.41,215.3,37.34]
[1756426229536,4.64291008,215.39,215.3,37.34]
[1756426229740,0.69,215.37,215.3,37.34]
[1756426229929,0.69,215.36,215.3,37.34]
[1756426230233,0.69,215.36,215.31,4.64446611]
[1756426230811,0.1,215.41,215.32,0.74432314]
[1756426231043,0.1,215.41,215.35,0.28432314]
[1756426231213,0.1,215.41,215.37,13.87991715]
[1756426231408,0.1,215.41,215.38,0.46429566]
[1756426231613,0.1,215.41,215.39,0.46]
[1756426231812,0.1,215.41,215.4,37.34]
[1756426232034,0.1,215.41,215.4,37.8]
[1756426232223,0.1,215.41,215.4,42.44252553]
[1756426234348,0.1,215.44,215.43,26.0]
[1756426234530,0.06,215.46,215.43,26.0]
[1756426234730,0.06,215.46,215.43,63.34]
[1756426235119,0.06,215.46,215.41,0.46]
[1756426235335,0.06,215.46,215.41,13.59559401]
[1756426235534,0.06,215.46,215.42,37.34]
[1756426235840,0.06,215.46,215.42,37.8]
[1756426236325,0.06,215.46,215.43,4.64187903]
[1756426237017,0.06,215.46,215.44,37.34]
[1756426237219,0.06,215.46,215.39,13.59559401]
[1756426237220,0.69,215.45,215.35,13.59559401]
[1756426237450,0.69,215.44,215.37,13.59559401]
[1756426237745,0.69,215.43,215.38,37.34]
[1756426237918,0.69,215.42,215.35,4.64360343]
[1756426238119,0.69,215.41,215.35,4.64360343]
[1756426238421,0.69,215.4,215.34,4.64380247]
[1756426238624,0.69,215.39,215.33,37.32]
[1756426238834,0.69,215.38,215.31,37.32]
[1756426239141,0.69,215.37,215.31,37.32]
[1756426239723,0.69,215.4,215.31,37.32]
[1756426240329,0.69,215.39,215.31,37.32]
[1756426240532,0.69,215.39,215.32,4.64425041]
[1756426241131,0.69,215.38,215.3,4.64468183]
[1756426241336,0.69,215.37,215.3,37.32]
[1756426241536,13.87991715,215.39,215.29,0.03]
[1756426241838,3.76563617,215.38,215.29,0.03]
[1756426242036,0.69,215.38,215.29,4.67478013]
[1756426242248,0.69,215.37,215.29,4.67478013]
[1756426242441,4.92715615,215.39,215.29,0.03]
[1756426242643,0.69,215.38,215.29,0.03]
[1756426243355,26.0,215.36,215.29,0.03]
[1756426243559,3.76563617,215.35,215.29,0.03]
[1756426244834,3.35995931,215.34,215.29,0.03]
[1756426245062,0.28432314,215.31,215.26,0.03]
[1756426245360,0.69,215.3,215.26,0.03]
[1756426246058,0.69,215.29,215.26,0.03]
[1756426246263,3.76563617,215.29,215.26,0.03]
[1756426247447,8.41065167,215.29,215.26,0.03]
[1756426248533,3.07563617,215.28,215.26,0.03]
[1756426248734,3.76563617,215.29,215.26,0.03]
[1756426249537,3.07563617,215.29,215.26,0.03]
[1756426249747,3.76563617,215.32,215.26,0.03]
[1756426250060,0.69,215.32,215.26,0.03]
[1756426250267,3.07563617,215.33,215.27,0.49]
[1756426250450,0.69,215.36,215.28,4.64511334]
[1756426250768,26.69,215.36,215.28,16.25789669]
[1756426250945,0.06,215.29,215.28,16.25789669]
[1756426251152,0.06,215.29,215.28,4.64511334]
[1756426251669,0.06,215.29,215.28,18.73070735]
[1756426251858,0.06,215.32,215.29,0.28432314]
[1756426252188,0.06,215.32,215.3,0.49]
[1756426252339,0.06,215.34,215.33,18.23962874]
[1756426252664,0.06,215.34,215.33,18.72962874]
[1756426253252,0.06,215.34,215.33,18.23962874]
[1756426253547,0.06,215.34,215.33,4.64403473]
[1756426255751,0.75,215.34,215.29,41.98489758]
[1756426256475,0.69,215.33,215.29,4.64489758]
[1756426256762,0.06,215.34,215.29,4.64489758]
[1756426257065,0.69,215.33,215.29,4.64489758]
[1756426258362,0.06,215.34,215.3,0.49]
[1756426258563,0.06,215.34,215.31,5.13446611]
[1756426258979,0.06,215.34,215.31,4.64446611]
[1756426259480,0.06,215.34,215.32,13.59559401]
[1756426260279,0.06,215.34,215.31,4.64446611]
[1756426261080,3.11541409,215.4,215.33,13.59559401]
[1756426261285,3.81481207,215.43,215.35,13.59559401]
[1756426261495,0.7,215.43,215.37,13.59559401]
[1756426262602,0.76,215.46,215.38,16.25034821]
[1756426262802,0.06,215.46,215.39,14.08559401]
[1756426263881,0.06,215.46,215.39,13.59559401]
[1756426264192,0.06,215.46,215.41,13.59559401]
[1756426264405,0.06,215.46,215.43,13.59559401]
[1756426264564,0.06,215.46,215.45,13.59559401]
[1756426264910,1e-08,215.48,215.47,26.28432314]
[1756426265066,1e-08,215.48,215.47,63.62432314]
[1756426265402,0.06,215.55,215.48,13.59559401]
[1756426265562,0.06,215.55,215.48,14.08559401]
[1756426265961,0.06,215.55,215.49,0.28432314]
[1756426266191,0.06,215.55,215.5,13.59559401]
[1756426266697,0.06,215.55,215.51,4.6401559]
[1756426266860,0.7,215.54,215.5,18.23594788]
[1756426267063,0.7,215.53,215.51,37.34]
[1756426267383,0.7,215.53,215.5,4.64035387]
[1756426267585,0.06,215.55,215.51,13.59559401]
[1756426267887,0.06,215.55,215.51,51.40559401]
[1756426268461,0.06,215.55,215.53,13.59559401]
[1756426269073,0.06,215.55,215.54,14.08559401]
[1756426269798,0.06,215.55,215.54,13.59559401]
[1756426270505,0.06,215.55,215.54,18.72510407]
[1756426270797,0.06,215.58,215.57,39.87991715]
[1756426270959,0.06,215.6,215.58,13.87991715]
[1756426271159,0.7,215.67,215.58,14.36991715]
[1756426271381,0.1,215.68,215.62,13.87991715]
[1756426271573,0.1,215.68,215.64,13.59559401]
[1756426272495,0.1,215.68,215.64,18.23278332]
[1756426273093,0.1,215.68,215.66,13.59559401]
[1756426273263,0.1,215.68,215.67,37.34]
[1756426273682,0.8,215.68,215.65,37.36]
[1756426273989,0.1,215.68,215.65,37.85]
[1756426274187,0.1,215.68,215.65,37.36]
[1756426274388,0.8,215.68,215.65,37.36]
[1756426274579,0.8,215.68,215.65,37.4]
[1756426274774,0.8,215.68,215.64,37.4]
[1756426276368,0.8,215.68,215.63,18.2331614]
[1756426276572,0.8,215.68,215.64,37.4]
[1756426276896,0.8,215.68,215.63,13.59559401]
[1756426277075,0.8,215.68,215.64,37.38]
[1756426277405,0.1,215.68,215.63,13.59559401]
[1756426277591,0.7,215.67,215.59,13.59559401]
[1756426277775,0.7,215.66,215.56,4.63887665]
[1756426278106,0.7,215.65,215.57,37.4]
[1756426278267,0.7,215.65,215.59,4.63843406]
[1756426278472,0.7,215.65,215.58,13.59559401]
[1756426279879,0.1,215.68,215.6,13.59559401]
[1756426280076,26.1,215.68,215.62,13.59559401]
[1756426280298,0.1,215.68,215.63,4.63757362]
[1756426282307,0.1,215.68,215.65,4.63714351]
[1756426282773,0.1,215.68,215.65,41.99714351]
[1756426282974,0.1,215.68,215.66,13.59559401]
[1756426283779,0.1,215.68,215.66,14.08559401]
[1756426284096,0.1,215.68,215.67,50.93559401]
[1756426284617,0.1,215.68,215.67,55.5723075]
[1756426286989,0.1,215.68,215.67,56.0623075]
[1756426287185,0.1,215.68,215.67,56.34663064]
[1756426287485,0.06,215.71,215.69,0.28432314]
[1756426287712,0.06,215.71,215.7,37.79]
[1756426288302,0.06,215.71,215.7,51.66991715]
[1756426288508,0.06,215.71,215.7,56.30598576]
[1756426289314,0.7,215.79,215.73,39.87991715]
[1756426289517,0.7,215.83,215.75,13.59559401]
[1756426290395,0.68,215.82,215.76,37.3]
[1756426290599,0.68,215.82,215.77,13.59559401]
[1756426290893,0.68,215.81,215.68,13.59559401]
[1756426291101,0.68,215.8,215.7,13.59559401]
[1756426291284,0.28432314,215.82,215.7,13.59559401]
[1756426291285,0.68,215.79,215.7,13.59559401]
[1756426291610,0.68,215.78,215.7,13.59559401]
[1756426291810,0.68,215.77,215.7,13.59559401]
[1756426291997,0.68,215.76,215.7,13.59559401]
[1756426292194,0.68,215.75,215.66,30.63692849]
[1756426292404,0.68,215.74,215.67,50.99559401]
[1756426292602,26.0,215.79,215.69,13.59559401]
[1756426292798,0.68,215.77,215.7,37.4]
[1756426293309,0.68,215.77,215.71,13.59559401]
[1756426293495,26.68,215.8,215.71,13.59559401]
[1756426293684,4.63304877,215.85,215.73,13.59559401]
[1756426293882,0.68,215.84,215.75,13.59559401]
[1756426294283,0.68,215.88,215.77,13.59559401]
[1756426294592,0.68,215.88,215.81,13.59559401]
[1756426294786,0.68,215.88,215.82,37.42]
[1756426294980,0.68,215.88,215.83,13.59559401]
[1756426295190,0.68,215.91,215.85,13.59559401]
[1756426295407,0.68,215.91,215.85,37.42]
[1756426295822,0.68,215.9,215.85,37.42]
[1756426296032,0.68,215.89,215.85,37.42]
[1756426296235,7.69886047,215.95,215.85,37.42]
[1756426296396,0.68,215.94,215.85,37.42]
[1756426296598,4.63134494,215.92,215.85,37.42]
[1756426296798,0.68,215.91,215.81,4.63349294]
[1756426297097,0.68,215.9,215.82,37.42]
[1756426297299,0.68,215.9,215.83,13.59559401]
[1756426297507,0.68,215.92,215.83,13.59559401]
[1756426298013,0.68,215.92,215.84,37.44]
[1756426298229,0.68,215.92,215.85,13.59559401]
[1756426298818,0.68,215.92,215.86,4.63263226]
[1756426299047,0.68,215.92,215.82,26.0]
[1756426299222,0.68,215.91,215.86,13.59559401]
[1756426299524,0.68,215.9,215.84,37.42]
[1756426299717,3.06727143,215.93,215.85,14.08559401]
[1756426300027,26.0,215.95,215.86,0.49]
[1756426300425,0.68,215.94,215.84,26.0]
[1756426300612,0.68,215.93,215.85,13.59559401]
[1756426300811,4.63127391,215.93,215.85,13.59559401]
[1756426301124,0.68,215.92,215.85,18.22842461]
[1756426301721,0.68,215.92,215.86,37.44]
[1756426301910,3.06659529,215.94,215.85,55.66833551]
[1756426302222,0.68,215.93,215.85,18.22833551]
[1756426303412,0.68,215.93,215.85,4.6327415]
[1756426303729,0.68,215.92,215.85,4.6327415]
[1756426304812,3.06659529,215.94,215.87,4.63241765]
[1756426305305,3.06659529,215.94,215.8,4.66314235]
[1756426305306,0.96432314,215.93,215.81,30.63370557]
[1756426305528,4.03091843,215.93,215.81,30.63370557]
[1756426305729,3.35091843,215.93,215.81,4.63370557]
[1756426305906,0.68,215.92,215.81,4.63370557]
[1756426306106,26.68,215.91,215.81,4.63370557]
[1756426306332,3.74659529,215.9,215.81,4.63370557]
[1756426306829,8.37840693,215.9,215.8,4.63392029]
[1756426307018,8.37840693,215.9,215.81,13.59559401]
[1756426307019,5.31181164,215.9,215.81,13.59559401]
[1756426307837,15.41137927,215.94,215.8,42.07392029]
[1756426307838,5.31072115,215.95,215.86,13.59559401]
[1756426308025,5.31072115,215.95,215.85,26.0]
[1756426308233,0.68,215.95,215.88,13.59559401]
[1756426308413,3.75903514,215.95,215.88,13.59559401]
[1756426308908,3.75903514,215.95,215.89,4.63198851]
[1756426309110,3.75903514,215.95,215.88,18.22778299]
[1756426309726,3.76039633,215.95,215.88,18.22778299]
[1756426310325,3.08039633,215.95,215.9,13.59559401]
[1756426310533,3.14039633,215.96,215.9,0.49]
[1756426310718,29.14039633,215.96,215.9,0.49]
[1756426310914,26.06,215.96,215.9,0.49]
[1756426311119,26.06,215.96,215.91,4.63155944]
[1756426312334,3.08190847,215.95,215.91,4.63155944]
[1756426313229,0.68,215.94,215.88,4.6321991]
[1756426313428,3.08190847,215.95,215.88,4.6321991]
[1756426314016,0.06,215.96,215.89,0.49]
[1756426314235,3.14248197,215.96,215.9,13.59559401]
[1756426314732,3.14248197,215.96,215.89,14.08559401]
[1756426314919,0.06,215.96,215.89,14.08559401]
[1756426315114,0.06,215.96,215.9,13.59559401]
[1756426315321,3.14248197,215.96,215.9,13.59559401]
[1756426315521,0.06,215.96,215.9,13.59559401]
[1756426315826,0.06,215.96,215.87,38.07]
[1756426315827,0.68,215.95,215.88,4.63216393]
[1756426316008,0.68,215.94,215.87,4.63239117]
[1756426316209,0.68,215.93,215.86,18.22817551]
[1756426317242,8.45299117,215.96,215.87,0.49]
[1756426317444,3.08248197,215.95,215.88,13.59559401]
[1756426317622,0.06,215.96,215.9,13.59559401]
[1756426318420,0.06,215.96,215.9,37.6]
[1756426318614,0.06,215.96,215.91,0.49]
[1756426318815,0.06,215.96,215.9,37.6]
[1756426319126,0.06,215.96,215.91,4.63155944]
[1756426319325,0.06,215.96,215.91,5.12155944]
[1756426319508,0.06,215.96,215.92,14.08559401]
[1756426319941,0.06,215.96,215.93,0.49]
[1756426320139,0.06,215.96,215.94,0.49]
[1756426320427,0.06,215.96,215.91,42.21155944]
[1756426320736,0.06,215.96,215.92,0.49]
[1756426320925,0.7,215.95,215.84,4.63302473]
[1756426321111,0.7,215.95,215.81,0.49]
[1756426321112,4.63113045,215.93,215.81,0.49]
[1756426321312,0.7,215.92,215.81,0.49]
[1756426321519,0.7,215.92,215.81,4.63362917]
[1756426321736,0.7,215.92,215.78,49.73579458]
[1756426321737,26.0,215.9,215.78,38.15]
[1756426321927,3.78571432,215.89,215.78,4.63434866]
[1756426322132,0.7,215.88,215.78,4.63434866]
[1756426322444,0.7,215.87,215.78,4.63434866]
[1756426322615,0.7,215.86,215.78,4.63434866]
[1756426322816,0.7,215.85,215.76,4.6345653]
[1756426323027,3.08571432,215.89,215.77,0.49]
[1756426323028,3.78571432,215.89,215.77,0.49]
[1756426323319,8.41788363,215.89,215.78,4.6343498]
[1756426323521,0.7,215.88,215.79,0.49]
[1756426323744,3.78571432,215.88,215.79,0.49]
[1756426324318,0.7,215.88,215.79,0.49]
[1756426324519,26.0,215.89,215.8,13.59559401]
[1756426324820,26.0,215.89,215.81,0.49]
[1756426325343,0.7,215.88,215.82,4.63349087]
[1756426325545,80.99141318,215.94,215.82,4.63349087]
[1756426325546,0.7,215.9,215.82,4.63349087]
[1756426325841,0.7,215.9,215.83,14.08559401]
[1756426325842,3.09417675,215.9,215.83,14.08559401]
[1756426326026,0.7,215.94,215.85,13.59559401]
[1756426326528,3.15417675,215.96,215.87,13.59559401]
[1756426326719,0.06,215.96,215.89,13.59559401]
[1756426326918,0.06,215.96,215.9,0.49]
[1756426327225,0.06,215.96,215.91,4.63155944]
[1756426327424,0.06,215.96,215.91,5.12155944]
[1756426328038,0.7,215.95,215.87,38.09]
[1756426328342,0.7,215.95,215.87,37.6]
[1756426328646,0.7,215.95,215.86,38.11]
[1756426328817,0.7,215.95,215.86,0.49]
[1756426329024,0.06,215.96,215.86,1.23758636]
[1756426329235,0.06,215.96,215.89,16.21195979]
[1756426329444,0.06,215.96,215.9,0.49]
[1756426329642,0.06,215.96,215.91,51.21559401]
[1756426329869,0.06,215.96,215.92,0.49]
[1756426330341,0.06,215.96,215.89,4.63198851]
[1756426330525,0.06,215.96,215.89,42.25198851]
[1756426330723,0.76,215.96,215.89,42.25198851]
[1756426332437,26.0,215.94,215.85,3.834089]
[1756426332636,3.79417675,215.93,215.81,0.49]
[1756426332837,26.7,215.93,215.82,13.59559401]
[1756426333043,3.09417675,215.92,215.84,13.59559401]
[1756426333359,0.7,215.93,215.85,0.49]
[1756426333526,3.09417675,215.95,215.89,13.59559401]
[1756426333729,0.06,215.96,215.9,0.77432314]
[1756426333961,0.06,215.96,215.92,13.59559401]
[1756426334138,0.06,215.96,215.93,38.29]
[1756426334455,0.06,215.96,215.93,37.8]
[1756426334762,0.7,215.95,215.89,29.094177]
[1756426334941,0.7,215.95,215.89,40.874177]
[1756426335130,0.7,215.95,215.89,37.78]
[1756426335438,0.06,215.96,215.9,0.49]
[1756426335640,0.06,215.96,215.91,4.63155944]
[1756426335859,0.06,215.96,215.91,42.92155944]
[1756426337361,0.06,215.96,215.91,42.43155944]
[1756426337547,3.09417675,215.95,215.91,4.63155944]
[1756426337754,3.09417675,215.94,215.91,4.63155944]
[1756426338236,3.09417675,215.93,215.91,4.63155944]
[1756426338558,3.15417675,215.96,215.92,0.49]
[1756426338741,0.06,215.96,215.92,0.49]
[1756426339162,0.06,215.96,215.93,0.49]
[1756426339348,0.06,215.96,215.95,13.59559401]
[1756426339547,0.06,215.96,215.95,14.08559401]
[1756426340932,0.06,215.96,215.95,13.59559401]
[1756426341360,0.06,215.96,215.95,18.22629556]
[1756426342337,3.09417675,216.03,215.98,26.0]
[1756426342543,233.89355742,216.11,215.98,26.0]
[1756426342544,233.89355742,216.11,216.0,0.28432314]
[1756426342758,3.10927942,216.1,216.01,0.49]
[1756426343142,233.89355742,216.11,216.03,0.28432314]
[1756426343351,233.89355742,216.11,216.06,16.19920391]
[1756426343547,233.89355742,216.11,216.06,16.68920391]
[1756426343742,233.89355742,216.11,216.07,0.49]
[1756426344458,233.89355742,216.11,216.07,13.59559401]
[1756426344663,233.89355742,216.11,216.07,14.08559401]
[1756426345033,233.89355742,216.11,216.07,13.59559401]
[1756426345451,233.89355742,216.11,216.08,4.62791558]
[1756426345646,172.40386679,216.11,216.09,0.49]
[1756426346168,17.16280603,216.11,216.1,34.36991715]
[1756426346470,0.201,216.24,216.15,0.28432314]
[1756426346648,0.201,216.24,216.17,13.87991715]
[1756426347349,0.201,216.24,216.18,16.19021185]
[1756426347867,0.901,216.24,216.18,16.19021185]
[1756426348265,0.201,216.24,216.18,16.19021185]
[1756426348449,0.7,216.23,216.18,4.62577481]
[1756426348647,0.7,216.22,216.18,4.62577481]
[1756426348866,0.7,216.21,216.18,4.62577481]
[1756426349035,0.7,216.2,216.13,42.56684495]
[1756426349241,0.7,216.19,216.13,42.56684495]
[1756426349541,0.7,216.19,216.13,54.13395733]
[1756426350165,0.66,216.22,216.13,54.13395733]
[1756426350767,0.66,216.21,216.13,54.13395733]
[1756426351136,0.201,216.24,216.13,54.13395733]
[1756426351335,0.66,216.23,216.13,37.94]
[1756426351577,18.88051307,216.22,216.09,37.96]
[1756426351741,0.66,216.21,216.09,37.96]
[1756426352054,26.0,216.18,216.03,13.911108]
[1756426352252,13.59559401,216.16,216.03,13.911108]
[1756426352448,13.59559401,216.14,216.02,4.62920099]
[1756426352643,0.66,216.13,216.02,4.62920099]
[1756426352955,0.66,216.12,216.02,4.62920099]
[1756426353159,27.96,216.2,216.02,16.20220348]
[1756426353338,0.66,216.15,216.02,16.20220348]
[1756426353535,0.66,216.15,216.02,11.57300249]
[1756426353761,0.66,216.14,216.02,11.57300249]
[1756426354085,0.66,216.13,216.02,11.57300249]
[1756426357653,0.66,216.13,216.02,16.20220348]
[1756426359091,13.59559401,216.11,215.93,37.92]
[1756426359272,0.66,216.1,215.93,37.92]
[1756426359568,5.28776275,216.09,215.94,16.20820597]
[1756426359752,77.61559401,216.11,215.94,16.20820597]
[1756426359753,26.0,216.11,215.96,0.28432314]
[1756426359954,0.66,216.11,215.98,26.0]
[1756426360167,0.66,216.11,215.99,38.02]
[1756426360366,0.66,216.1,215.99,38.02]
[1756426360876,0.66,216.1,216.0,16.20370369]
[1756426361055,0.28432314,216.14,216.0,4.62962962]
[1756426361376,0.66,216.09,215.97,4.63027272]
[1756426361581,0.66,216.08,215.97,4.63027272]
[1756426361753,0.66,216.08,215.97,54.24595452]
[1756426363568,26.0,216.12,215.97,54.24595452]
[1756426363753,0.66,216.11,215.97,54.24595452]
[1756426364485,0.66,216.1,215.97,54.24595452]
[1756426364648,0.66,216.09,215.97,54.24595452]
[1756426365271,0.66,216.09,215.97,4.63027272]
[1756426365272,0.66,216.08,215.97,4.63027272]
[1756426365459,53.96,216.12,215.97,16.20595452]
[1756426365654,0.66,216.11,215.97,16.20595452]
[1756426365874,0.66,216.11,215.98,13.87991715]
[1756426366604,4.62707029,216.12,215.97,16.20595452]
[1756426366884,26.0,216.14,215.98,13.87991715]
[1756426367390,0.66,216.15,216.02,26.0]
[1756426367574,0.66,216.15,216.03,38.12]
[1756426368475,0.66,216.14,216.03,38.12]
[1756426368690,0.66,216.13,216.03,38.12]
[1756426368880,0.66,216.12,216.03,38.12]
[1756426369387,0.66,216.12,216.03,42.74877408]
[1756426369591,0.66,216.15,216.03,42.74877408]
[1756426369769,0.66,216.15,216.03,54.32124086]
[1756426371615,0.66,216.15,216.04,13.87991715]
[1756426373295,0.66,216.15,216.05,4.6285582]
[1756426373679,0.66,216.15,216.05,16.19995371]
[1756426375009,5.28641745,216.15,216.05,4.6285582]
[1756426375207,0.66,216.15,216.05,42.6085582]
[1756426375710,0.66,216.15,216.05,54.17995371]
[1756426376008,0.66,216.14,216.03,4.62881785]
[1756426376177,4.62649917,216.15,216.03,4.62881785]
[1756426376378,0.66,216.14,216.03,4.62881785]
[1756426377008,13.913688,216.2,216.04,0.28432314]
[1756426377199,26.66,216.17,216.04,0.28432314]
[1756426377591,26.66,216.17,216.03,11.57246678]
[1756426377787,0.66,216.16,216.04,13.911753]
[1756426378000,0.66,216.16,216.03,11.57246678]
[1756426378202,0.66,216.15,216.01,42.6094153]
[1756426378402,26.66,216.14,216.01,42.6094153]
[1756426378692,0.66,216.13,216.01,42.6094153]
[1756426379298,0.66,216.13,216.01,54.18295356]
[1756426379498,26.0,216.15,216.01,54.18295356]
[1756426379913,4.6253469,216.2,216.02,13.87991715]
[1756426380119,26.0,216.17,216.02,13.87991715]
[1756426380429,0.06,216.22,216.06,13.87991715]
[1756426380617,0.71,216.21,216.08,13.87991715]
[1756426380924,0.06,216.16,216.08,13.87991715]
[1756426381599,0.06,216.16,216.09,16.19695497]
[1756426382412,0.06,216.22,216.16,26.0]
[1756426382614,0.201,216.24,216.17,13.87991715]
[1756426383412,0.201,216.24,216.2,0.28432314]
[1756426384007,0.201,216.24,216.19,0.28432314]
[1756426384309,0.201,216.24,216.2,0.28432314]
[1756426384511,0.201,216.24,216.18,4.62577481]
[1756426384919,0.201,216.24,216.16,4.62602488]
[1756426385620,4.8254989,216.24,216.15,40.14639871]
[1756426385808,0.71,216.23,216.15,35.52]
[1756426386126,0.71,216.23,216.15,40.14639429]
[1756426386331,0.71,216.23,216.15,35.52]
[1756426386707,0.71,216.23,216.15,40.14639883]
[1756426387024,0.71,216.23,216.1,26.0]
[1756426387230,0.71,216.23,216.1,64.16]
[1756426387730,5.33482073,216.23,216.11,4.62727314]
[1756426388101,0.71,216.22,216.11,4.62727314]
[1756426388804,4.62482073,216.23,216.11,4.12727314]
[1756426389030,0.71,216.22,216.11,4.12727314]
[1756426390143,0.71,216.22,216.1,16.19574245]
[1756426391424,5.33493259,216.22,216.1,16.19574245]
[1756426391634,0.71,216.21,216.1,16.19574245]
[1756426391831,0.71,216.2,216.1,4.62748727]
[1756426392043,0.71,216.19,216.1,4.62748727]
[1756426393101,0.71,216.19,216.09,4.62770142]
[1756426393632,5.33559238,216.19,216.09,4.62770142]
[1756426393936,0.71,216.18,216.08,4.62788739]
[1756426394146,0.71,216.17,216.08,4.62788739]
[1756426394308,0.71,216.16,216.08,4.62788739]
[1756426394506,26.71,216.16,216.07,38.04]
[1756426394709,0.71,216.15,216.01,4.6294153]
[1756426395024,0.71,216.14,216.01,4.6294153]
[1756426395203,26.0,216.16,216.01,4.6294153]
[1756426395204,5.33684495,216.13,216.01,4.6294153]
[1756426395412,0.71,216.12,216.01,4.6294153]
[1756426395616,0.71,216.11,216.01,4.6294153]